bitfinex-derivatives/quotes_BNBF0:USTF0_20250810
["timestamp","ask_amount","ask_price","bid_price","bid_amount"]
[1754858368490,0.80285976,804.47,802.8,2.8023031]
[1754858368687,0.80285976,804.46,802.8,2.8023031]
[1754858368891,0.80285976,804.45,802.8,2.8023031]
[1754858369091,0.80285976,804.44,802.8,2.8023031]
[1754858369289,0.80285976,804.43,802.8,2.8023031]
[1754858369493,0.80285976,804.42,802.8,2.8023031]
[1754858369789,0.80285976,804.41,802.8,2.8023031]
[1754858369991,0.80285976,804.4,802.8,2.8023031]
[1754858370188,0.80285976,804.39,802.8,2.8023031]
[1754858370394,0.80285976,804.38,802.8,2.8023031]
[1754858370594,0.80285976,804.37,802.79,2.8023031]
[1754858370894,0.80285976,804.36,802.79,2.8023031]
[1754858371090,0.80285976,804.35,802.79,2.8023031]
[1754858371295,0.83710055,804.81,802.79,2.8023031]
[1754858371590,0.83710055,804.81,802.94,2.8023031]
[1754858372095,0.83710055,804.81,802.93,2.8023031]
[1754858372296,0.80103037,804.8,802.93,2.8023031]
[1754858372595,0.80103037,804.79,802.93,2.8023031]
[1754858372794,0.80103037,804.78,802.93,2.8023031]
[1754858372994,0.80103037,804.77,802.93,2.8023031]
[1754858373295,0.80103037,804.76,802.99,2.8023031]
[1754858373495,0.80103037,804.75,802.99,2.8023031]
[1754858373694,0.80103037,804.74,802.99,2.8023031]
[1754858373994,0.80103037,804.73,802.99,2.8023031]
[1754858374198,0.83710055,804.73,803.33,2.8023031]
[1754858374399,0.80103037,804.72,803.33,2.8023031]
[1754858374598,0.83710055,804.73,803.33,2.8023031]
[1754858374599,0.80103037,804.71,803.33,2.8023031]
[1754858374798,0.80103037,804.7,803.12,2.8023031]
[1754858375098,0.80103037,804.69,803.12,2.8023031]
[1754858375398,0.80103037,804.68,803.12,2.8023031]
[1754858375598,0.80103037,804.67,803.12,2.8023031]
[1754858375800,0.80103037,804.66,803.12,2.8023031]
[1754858375999,0.80103037,804.65,803.12,2.8023031]
[1754858376196,0.80103037,804.64,803.12,2.8023031]
[1754858376400,0.80103037,804.63,803.12,2.8023031]
[1754858376601,0.80103037,804.62,803.12,2.8023031]
[1754858376797,0.80103037,804.61,803.12,2.8023031]
[1754858377002,0.80103037,804.6,803.12,2.8023031]
[1754858377201,0.80103037,804.59,803.12,2.8023031]
[1754858377501,0.80103037,804.58,803.09,2.8023031]
[1754858377798,0.80103037,804.57,803.09,2.8023031]
[1754858378100,0.80103037,804.56,803.09,2.8023031]
[1754858378297,0.80103037,804.55,803.09,2.8023031]
[1754858378496,0.80103037,804.54,803.09,2.8023031]
[1754858378696,0.80103037,804.53,803.09,2.8023031]
[1754858378901,0.80103037,804.52,803.12,2.8023031]
[1754858379100,0.80103037,804.51,803.12,2.8023031]
[1754858379300,0.80103037,804.5,803.12,2.8023031]
[1754858379504,0.21649061,804.86,803.12,2.8023031]
[1754858379704,0.80073521,804.85,803.12,2.8023031]
[1754858380004,0.80073521,804.84,802.75,2.8023031]
[1754858380199,0.80073521,804.83,802.75,2.8023031]
[1754858380399,0.80073521,804.82,802.75,2.8023031]
[1754858380602,0.80073521,804.81,802.75,2.8023031]
[1754858380801,0.80073521,804.8,802.75,2.8023031]
[1754858381004,0.80073521,804.79,802.74,2.8023031]
[1754858381300,0.80073521,804.78,802.74,2.8023031]
[1754858381599,0.80073521,804.77,802.7,2.8023031]
[1754858381801,0.80073521,804.76,802.7,2.8023031]
[1754858382000,0.80073521,804.75,802.7,2.8023031]
[1754858382204,0.80073521,804.74,802.7,2.8023031]
[1754858382404,0.80073521,804.73,802.7,2.8023031]
[1754858382606,0.80073521,804.72,802.71,2.8023031]
[1754858382804,0.80073521,804.71,802.71,2.8023031]
[1754858383105,0.80073521,804.7,802.71,2.8023031]
[1754858383404,0.80073521,804.69,802.71,2.8023031]
[1754858383602,0.80073521,804.68,802.71,2.8023031]
[1754858383804,0.80073521,804.67,802.71,2.8023031]
[1754858384003,0.80073521,804.66,802.71,2.8023031]
[1754858384203,0.80073521,804.65,802.71,2.8023031]
[1754858384402,0.80073521,804.64,802.71,2.8023031]
[1754858384604,0.21649061,804.86,802.71,2.8023031]
[1754858384605,0.80073521,804.63,802.71,2.8023031]
[1754858384801,0.80073521,804.62,802.71,2.8023031]
[1754858385100,0.80073521,804.61,802.71,2.8023031]
[1754858385302,0.21649061,804.86,802.71,2.8023031]
[1754858385499,0.800765,804.85,802.71,2.8023031]
[1754858385700,0.800765,804.84,802.71,2.8023031]
[1754858385898,0.800765,804.83,802.71,2.8023031]
[1754858386102,0.800765,804.82,802.71,2.8023031]
[1754858386304,0.800765,804.81,802.71,2.8023031]
[1754858386504,0.800765,804.8,802.71,2.8023031]
[1754858386702,0.800765,804.79,802.71,2.8023031]
[1754858386907,0.800765,804.78,802.71,2.8023031]
[1754858387107,0.800765,804.77,802.71,2.8023031]
[1754858387303,0.800765,804.76,802.71,2.8023031]
[1754858387510,0.800765,804.75,802.71,2.8023031]
[1754858387707,0.800765,804.74,802.71,2.8023031]
[1754858387905,0.800765,804.73,802.71,2.8023031]
[1754858388207,0.800765,804.72,802.97,2.8023031]
[1754858388405,0.800765,804.71,802.97,2.8023031]
[1754858388613,0.800765,804.7,802.97,2.8023031]
[1754858388807,0.800765,804.69,802.97,2.8023031]
[1754858389006,0.800765,804.68,802.97,2.8023031]
[1754858389208,0.800765,804.67,802.97,2.8023031]
[1754858389407,0.800765,804.66,802.97,2.8023031]
[1754858389607,0.800765,804.65,802.97,2.8023031]
[1754858389806,0.21649061,804.86,803.3,2.8023031]
[1754858390007,0.80075859,804.85,803.3,2.8023031]
[1754858390208,0.80075859,804.84,803.3,2.8023031]
[1754858390406,0.80075859,804.83,803.3,2.8023031]
[1754858390608,0.80075859,804.82,803.94,1.6775137]
[1754858390904,0.80075859,804.82,802.98,3.9232243]
[1754858390905,0.80075859,804.81,803.97,1.6775137]
[1754858391105,0.80075859,804.8,803.97,1.6775137]
[1754858391310,0.80075859,804.79,804.0,1.6775137]
[1754858391508,0.80075859,804.78,804.0,1.6775137]
[1754858391709,0.21649061,804.86,804.0,1.6775137]
[1754858391710,0.80075859,804.77,804.0,1.6775137]
[1754858391911,0.80075859,804.76,804.0,1.6775137]
[1754858392107,0.80075859,804.75,804.0,1.6775137]
[1754858392309,0.80075859,804.74,804.0,1.6775137]
[1754858392508,0.80075859,804.73,804.0,1.6775137]
[1754858392810,0.80075859,804.72,804.0,1.6775137]
[1754858393010,0.80075859,804.71,804.01,1.6775137]
[1754858393208,0.80075859,804.7,804.0,1.6775137]
[1754858393407,0.80075859,804.69,804.0,1.6775137]
[1754858393708,0.80075859,804.68,804.0,1.6775137]
[1754858393909,0.21649061,804.86,804.0,1.6775137]
[1754858394108,0.80038086,804.85,804.0,1.6775137]
[1754858394307,0.80038086,804.84,804.0,1.6775137]
[1754858394510,0.80038086,804.83,804.0,1.6775137]
[1754858394709,0.80038086,804.82,804.0,1.6775137]
[1754858394914,0.80038086,804.81,804.0,1.6775137]
[1754858395113,0.80038086,804.8,804.0,1.6775137]
[1754858395312,0.80038086,804.79,804.0,1.6775137]
[1754858395513,0.80038086,804.78,804.0,1.6775137]
[1754858395711,0.80038086,804.77,804.0,1.6775137]
[1754858395915,0.80038086,804.76,804.0,1.6775137]
[1754858396212,0.80038086,804.75,804.03,1.6775137]
[1754858396412,0.80038086,804.74,804.03,1.6775137]
[1754858396615,0.80038086,804.73,804.03,1.6775137]
[1754858396915,0.80038086,804.72,804.03,1.6775137]
[1754858397116,0.80038086,804.71,804.03,1.6775137]
[1754858397317,0.80038086,804.7,804.03,1.6775137]
[1754858397518,0.80038086,804.69,804.03,1.6775137]
[1754858397818,0.21649061,804.86,804.06,1.6775137]
[1754858398017,0.80034189,804.85,804.06,1.6775137]
[1754858398215,0.80034189,804.84,804.06,1.6775137]
[1754858398414,0.80034189,804.83,804.06,1.6775137]
[1754858398714,0.80034189,804.82,804.06,1.6775137]
[1754858399017,0.80034189,804.81,804.06,1.6775137]
[1754858399215,0.80034189,804.8,804.06,1.6775137]
[1754858399414,0.80034189,804.79,804.06,1.6775137]
[1754858399614,0.80034189,804.78,804.06,1.6775137]
[1754858399819,0.80034189,804.77,804.06,1.6775137]
[1754858400014,0.80034189,804.76,804.06,1.6775137]
[1754858400212,0.80034189,804.75,804.06,1.6775137]
[1754858400413,0.80034189,804.74,804.06,1.6775137]
[1754858400616,0.80034189,804.73,804.06,1.6775137]
[1754858400814,0.80034189,804.72,804.06,1.6775137]
[1754858401019,0.80034189,804.71,804.06,1.6775137]
[1754858401218,0.80034189,804.7,803.95,1.6775137]
[1754858401416,0.80034189,804.69,803.95,1.6775137]
[1754858401620,0.80034189,804.68,803.88,1.6775137]
[1754858401815,0.80034189,804.67,803.88,1.6775137]
[1754858402015,0.80034189,804.66,803.88,1.6775137]
[1754858402218,0.80034189,804.65,803.88,1.6775137]
[1754858402416,0.80034189,804.64,803.88,1.6775137]
[1754858402620,0.80034189,804.63,803.88,1.6775137]
[1754858402820,0.80034189,804.62,803.88,1.6775137]
[1754858403021,0.80034189,804.61,803.9,1.6775137]
[1754858403216,0.80034189,804.6,803.9,1.6775137]
[1754858403420,0.80034189,804.59,803.9,1.6775137]
[1754858403721,0.80029869,804.58,803.9,1.6775137]
[1754858403920,0.8368115,804.84,803.9,1.6775137]
[1754858404118,0.80029867,804.83,803.9,1.6775137]
[1754858404319,0.80029867,804.82,803.9,1.6775137]
[1754858404618,0.80029867,804.81,803.9,1.6775137]
[1754858404822,0.80029867,804.8,803.9,1.6775137]
[1754858405120,0.80029867,804.79,803.9,1.6775137]
[1754858405322,0.80029867,804.78,803.86,1.6775137]
[1754858405523,0.80029867,804.77,803.98,1.6775137]
[1754858405820,0.21649061,804.86,803.86,1.6775137]
[1754858406020,0.80052009,804.85,803.86,1.6775137]
[1754858406323,0.80052009,804.84,803.85,1.6775137]
[1754858406523,0.21649061,804.86,802.96,2.8023031]
[1754858406524,0.80052009,804.83,803.84,1.6775137]
[1754858406824,0.80052009,804.82,803.77,1.6775137]
[1754858407022,0.80052009,804.81,803.75,1.6775137]
[1754858407221,0.80052009,804.8,803.75,1.6775137]
[1754858407522,0.80052009,804.79,803.75,1.6775137]
[1754858407718,0.21649061,804.86,803.75,1.6775137]
[1754858407719,0.80052009,804.78,803.75,1.6775137]
[1754858408019,0.80052009,804.77,803.74,1.6775137]
[1754858408217,0.80052009,804.76,803.74,1.6775137]
[1754858408419,0.80052009,804.75,803.7,1.6775137]
[1754858408726,0.80052009,804.74,803.67,1.6775137]
[1754858409024,0.80052009,804.73,803.67,1.6775137]
[1754858409323,0.80052009,804.72,803.69,1.6775137]
[1754858409527,0.80052009,804.71,803.69,1.6775137]
[1754858409726,0.80052009,804.7,803.7,1.6775137]
[1754858410025,0.21649061,804.86,803.71,1.6775137]
[1754858410026,0.80052009,804.69,803.71,1.6775137]
[1754858410221,0.80052009,804.68,803.71,1.6775137]
[1754858410525,0.80052009,804.67,803.71,1.6775137]
[1754858410720,0.80052009,804.66,803.71,1.6775137]
[1754858410926,0.80052009,804.65,803.71,1.6775137]
[1754858411120,0.80052009,804.64,803.71,1.6775137]
[1754858411321,0.80052009,804.63,803.64,1.6775137]
[1754858411525,0.80052009,804.62,803.64,1.6775137]
[1754858411721,0.80052009,804.61,803.65,1.6775137]
[1754858411921,0.80052009,804.6,803.68,1.6775137]
[1754858412225,0.80052009,804.59,803.64,1.6775137]
[1754858412422,0.80052009,804.58,803.49,1.6775137]
[1754858412621,0.80052009,804.57,803.47,1.6775137]
[1754858412825,0.80052009,804.56,803.47,1.6775137]
[1754858413025,0.80052009,804.55,803.47,1.6775137]
[1754858413221,0.80052009,804.54,803.47,1.6775137]
[1754858413422,0.80052009,804.53,803.47,1.6775137]
[1754858413622,0.80052009,804.52,803.47,1.6775137]
[1754858413825,0.80052009,804.51,803.47,1.6775137]
[1754858414026,0.80052009,804.5,803.47,1.6775137]
[1754858414224,0.80052009,804.49,803.47,1.6775137]
[1754858414427,0.80052009,804.48,803.47,1.6775137]
[1754858414623,0.80052009,804.47,803.47,1.6775137]
[1754858414925,0.80052009,804.46,803.47,1.6775137]
[1754858415124,0.80052009,804.45,803.47,1.6775137]
[1754858415324,0.80052009,804.44,803.47,1.6775137]
[1754858415527,0.80052009,804.43,803.47,1.6775137]
[1754858415725,0.80052009,804.42,803.47,1.6775137]
[1754858415928,0.80052009,804.41,803.47,1.6775137]
[1754858416225,0.80052009,804.4,803.47,1.6775137]
[1754858416427,0.80052009,804.39,803.47,1.6775137]
[1754858416728,0.80052009,804.38,803.47,1.6775137]
[1754858416925,0.80052009,804.37,803.47,1.6775137]
[1754858417123,0.80052009,804.36,803.47,1.6775137]
[1754858417327,0.8368115,804.72,803.47,1.6775137]
[1754858417523,0.79965191,804.71,803.47,1.6775137]
[1754858417727,0.79965191,804.7,803.47,1.6775137]
[1754858417926,0.79965191,804.69,803.47,1.6775137]
[1754858418125,0.79965191,804.68,803.47,1.6775137]
[1754858418325,0.8368115,804.72,803.47,1.6775137]
[1754858418326,0.79965191,804.67,803.47,1.6775137]
[1754858418525,0.79965191,804.66,803.47,1.6775137]
[1754858418828,0.79965191,804.65,803.47,1.6775137]
[1754858419027,0.79965191,804.64,803.47,1.6775137]
[1754858419229,0.79965191,804.63,803.47,1.6775137]
[1754858419527,0.79965191,804.62,803.47,1.6775137]
[1754858419725,0.79965191,804.61,803.47,1.6775137]
[1754858419928,0.79965191,804.6,803.47,1.6775137]
[1754858420223,0.79965191,804.59,803.47,1.6775137]
[1754858420427,0.79965191,804.58,803.47,1.6775137]
[1754858420625,0.79965191,804.57,802.67,2.8023031]
[1754858420824,0.79965191,804.56,802.67,2.8023031]
[1754858421024,0.79965191,804.55,802.67,2.8023031]
[1754858421224,0.79965191,804.54,802.82,2.8023031]
[1754858421425,0.79965191,804.53,802.82,2.8023031]
[1754858421626,0.79965191,804.52,802.82,2.8023031]
[1754858421826,0.21649061,804.86,802.86,2.8023031]
[1754858422030,0.80024626,804.85,802.86,2.8023031]
[1754858422229,0.8368115,804.83,802.86,2.8023031]
[1754858422429,0.8368115,804.79,803.19,2.8023031]
[1754858422725,0.80024626,804.78,803.19,2.8023031]
[1754858422927,0.80024626,804.77,803.19,2.8023031]
[1754858423126,0.80024626,804.76,803.19,2.8023031]
[1754858423325,0.80024626,804.75,803.05,2.8023031]
[1754858423528,0.80024626,804.74,803.05,2.8023031]
[1754858423825,0.80024626,804.73,803.09,2.8023031]
[1754858424029,0.80024626,804.72,803.09,2.8023031]
[1754858424230,0.80024626,804.71,803.09,2.8023031]
[1754858424430,0.80024626,804.7,803.1,2.8023031]
[1754858424733,0.80024626,804.69,803.1,2.8023031]
[1754858424930,0.80024626,804.68,803.1,2.8023031]
[1754858425225,0.80024626,804.67,803.1,2.8023031]
[1754858425433,0.80024626,804.66,803.09,2.8023031]
[1754858425627,0.80024626,804.65,803.09,2.8023031]
[1754858425830,0.80024626,804.64,803.09,2.8023031]
[1754858426030,0.80024626,804.63,803.09,2.8023031]
[1754858426335,0.80024626,804.62,803.09,2.8023031]
[1754858426631,0.80024626,804.61,803.1,2.8023031]
[1754858426834,0.80024626,804.6,803.1,2.8023031]
[1754858427035,0.80024626,804.59,803.1,2.8023031]
[1754858427235,0.80024626,804.58,803.1,2.8023031]
[1754858427434,0.80024626,804.57,803.16,2.8023031]
[1754858427630,0.21649061,804.86,803.16,2.8023031]
[1754858427930,0.80011739,804.85,803.16,2.8023031]
[1754858428129,0.80011739,804.84,803.21,2.8023031]
[1754858428334,0.80011739,804.83,803.21,2.8023031]
[1754858428536,0.80011739,804.82,803.22,2.8023031]
[1754858428738,0.80011739,804.81,803.22,2.8023031]
[1754858428941,0.80011739,804.8,803.22,2.8023031]
[1754858429136,0.80011739,804.79,803.22,2.8023031]
[1754858429339,0.80011739,804.78,803.22,2.8023031]
[1754858429539,0.80011739,804.77,803.22,2.8023031]
[1754858429738,0.80011739,804.76,803.22,2.8023031]
[1754858429936,0.80011739,804.75,803.22,2.8023031]
[1754858430141,0.80011739,804.74,803.22,2.8023031]
[1754858430342,0.80011739,804.73,803.22,2.8023031]
[1754858430542,0.80011739,804.72,803.22,2.8023031]
[1754858430741,0.80011739,804.71,803.22,2.8023031]
[1754858430939,0.80011739,804.7,803.22,2.8023031]
[1754858431141,0.80011739,804.69,803.22,2.8023031]
[1754858431341,0.80011739,804.68,803.22,2.8023031]
[1754858431642,0.80011739,804.67,803.21,2.8023031]
[1754858431945,0.80011739,804.66,803.21,2.8023031]
[1754858432145,0.80011739,804.65,803.21,2.8023031]
[1754858432342,0.80011739,804.64,803.21,2.8023031]
[1754858432644,0.80011739,804.63,803.22,2.8023031]
[1754858432842,0.80011739,804.62,803.22,2.8023031]
[1754858433043,0.80011739,804.61,803.22,2.8023031]
[1754858433246,0.80011739,804.6,803.34,2.8023031]
[1754858433443,0.80011739,804.59,803.34,2.8023031]
[1754858433644,0.8368115,804.83,803.34,2.8023031]
[1754858433847,0.80035612,804.82,803.35,2.8023031]
[1754858434143,0.80035612,804.81,803.35,2.8023031]
[1754858434342,0.80035612,804.8,803.35,2.8023031]
[1754858434544,0.80035612,804.79,803.35,2.8023031]
[1754858434844,0.80035612,804.78,803.36,2.8023031]
[1754858435143,0.80035612,804.77,803.36,2.8023031]
[1754858435343,0.80035612,804.76,803.36,2.8023031]
[1754858435547,0.80035612,804.75,803.36,2.8023031]
[1754858435748,0.80035612,804.74,803.07,3.9232243]
[1754858435949,0.80035612,804.73,803.07,3.9232243]
[1754858436149,0.80035612,804.72,802.93,2.8023031]
[1754858436444,0.80035612,804.71,802.92,2.8023031]
[1754858436748,0.80035612,804.7,802.93,2.8023031]
[1754858436948,0.80035612,804.69,802.93,2.8023031]
[1754858437147,0.80035612,804.68,802.93,2.8023031]
[1754858437345,0.80035612,804.67,802.92,2.8023031]
[1754858437545,0.80035612,804.66,802.92,2.8023031]
[1754858437750,0.80035612,804.65,802.92,2.8023031]
[1754858438045,0.80035612,804.64,802.92,2.8023031]
[1754858438244,0.80035612,804.63,802.92,2.8023031]
[1754858438448,0.80035612,804.62,802.91,2.8023031]
[1754858438746,0.80035612,804.61,802.91,2.8023031]
[1754858439044,0.80035612,804.6,802.91,2.8023031]
[1754858439343,0.80035612,804.59,802.91,2.8023031]
[1754858439548,0.80035612,804.58,802.91,2.8023031]
[1754858439748,0.80035612,804.57,802.91,2.8023031]
[1754858439946,0.80035612,804.56,802.91,2.8023031]
[1754858440249,0.80035612,804.55,802.91,2.8023031]
[1754858440451,0.80035612,804.54,802.91,2.8023031]
[1754858440649,0.80035612,804.53,802.91,2.8023031]
[1754858440950,0.80035612,804.52,802.91,2.8023031]
[1754858441150,0.80035612,804.51,802.91,2.8023031]
[1754858441448,0.80035612,804.5,802.91,2.8023031]
[1754858441651,0.80035612,804.49,802.91,2.8023031]
[1754858441850,0.8368115,804.82,802.91,2.8023031]
[1754858442048,0.8003287,804.81,802.91,2.8023031]
[1754858442247,0.8003287,804.8,802.91,2.8023031]
[1754858442451,0.8003287,804.79,802.91,2.8023031]
[1754858442653,0.8003287,804.78,802.91,2.8023031]
[1754858442952,0.8003287,804.77,802.91,2.8023031]
[1754858443252,0.8003287,804.76,802.92,2.8023031]
[1754858443450,0.8003287,804.75,802.92,2.8023031]
[1754858443652,0.8003287,804.74,802.7,2.8023031]
[1754858443849,0.8003287,804.73,802.7,2.8023031]
[1754858444149,0.21649061,804.86,802.55,0.21660919]
[1754858444150,0.8003287,804.72,803.5,2.8023031]
[1754858444353,0.8003287,804.71,803.5,2.8023031]
[1754858444554,0.8003287,804.7,803.5,2.8023031]
[1754858444748,0.8003287,804.69,803.5,2.8023031]
[1754858444951,0.8003287,804.68,803.5,2.8023031]
[1754858445152,0.21649061,804.86,803.5,2.8023031]
[1754858445455,0.8004661,804.85,803.5,2.8023031]
[1754858445750,0.8004661,804.84,803.5,2.8023031]
[1754858445957,0.8004661,804.83,803.5,2.8023031]
[1754858446252,0.8004661,804.82,803.5,2.8023031]
[1754858446455,0.8004661,804.81,803.5,2.8023031]
[1754858446753,0.8004661,804.8,803.5,2.8023031]
[1754858446952,0.8004661,804.79,803.5,2.8023031]
[1754858447151,0.8004661,804.78,803.5,2.8023031]
[1754858447355,0.8004661,804.77,803.5,2.8023031]
[1754858447555,0.8004661,804.76,803.5,2.8023031]
[1754858447750,0.8004661,804.75,803.5,2.8023031]
[1754858447956,0.8004661,804.74,803.5,2.8023031]
[1754858448156,0.21649061,804.86,803.5,2.8023031]
[1754858448456,0.80061979,804.85,803.24,3.9232243]
[1754858448656,0.80061979,804.84,803.18,2.8023031]
[1754858448852,0.21649061,804.86,802.92,2.8023031]
[1754858449058,0.80047302,804.85,802.92,2.8023031]
[1754858449255,0.21649061,804.86,802.92,2.8023031]
[1754858449256,0.80047302,804.84,802.92,2.8023031]
[1754858449457,0.21649061,804.86,802.92,2.8023031]
[1754858449657,0.80043881,804.85,802.92,2.8023031]
[1754858449854,0.80043881,804.84,802.92,2.8023031]
[1754858450057,0.21649061,804.86,802.92,2.8023031]
[1754858450259,0.21649061,804.86,803.11,2.8023031]
[1754858450661,0.21649061,804.86,803.96,1.675085]
[1754858451261,0.79885558,804.85,803.84,1.675085]
[1754858451560,0.79885558,804.84,803.83,1.675085]
[1754858451760,0.79885558,804.83,803.83,1.675085]
[1754858451957,0.79885558,804.82,803.83,1.675085]
[1754858452256,0.79885558,804.82,802.97,2.8023031]
[1754858452257,0.79885558,804.81,803.82,1.675085]
[1754858452460,0.21649061,804.86,803.82,1.675085]
[1754858452658,0.7986455,804.85,803.82,1.675085]
[1754858452862,0.7986455,804.84,803.82,1.675085]
[1754858453059,0.7986455,804.83,803.82,1.675085]
[1754858453262,0.7986455,804.82,803.82,1.675085]
[1754858453463,0.21649061,804.86,803.81,1.675085]
[1754858453663,0.7984818,804.85,803.81,1.675085]
[1754858453859,0.7984818,804.84,803.81,1.675085]
[1754858454063,0.7984818,804.83,803.81,1.675085]
[1754858454259,0.7984818,804.82,803.81,1.675085]
[1754858454463,0.21649061,804.86,803.8,1.675085]
[1754858454662,0.79840462,804.85,803.8,1.675085]
[1754858454860,0.79840462,804.84,803.8,1.675085]
[1754858455061,0.79840462,804.83,803.8,1.675085]
[1754858455261,0.79840462,804.82,803.79,1.675085]
[1754858455466,0.21649061,804.86,803.78,1.675085]
[1754858455667,0.79827594,804.85,803.78,1.675085]
[1754858455868,0.79827594,804.84,803.78,1.675085]
[1754858456064,0.79827594,804.83,803.78,1.675085]
[1754858456263,0.79827594,804.82,803.78,1.675085]
[1754858456465,0.21649061,804.86,803.77,1.675085]
[1754858456870,0.21649061,804.86,803.99,1.675085]
[1754858457570,0.21649061,804.86,803.96,1.675085]
[1754858458270,0.21649061,804.86,803.95,1.675085]
[1754858458469,0.21649061,804.86,803.94,1.675085]
[1754858459466,0.21649061,804.86,803.92,1.675085]
[1754858460366,0.21649061,804.86,803.26,2.8023031]
[1754858460367,0.21649061,804.86,803.87,1.675085]
[1754858460571,0.21649061,804.86,803.91,1.675085]
[1754858461268,0.21649061,804.86,804.0,1.675085]
[1754858461568,0.21649061,804.86,803.97,1.675085]
[1754858461767,0.21649061,804.86,803.98,1.675085]
[1754858462368,0.21649061,804.86,802.79,3.9232243]
[1754858462369,0.21649061,804.86,803.95,1.675085]
[1754858463473,0.21649061,804.86,803.93,1.675085]
[1754858464473,0.21649061,804.86,803.91,1.675085]
[1754858465372,0.21649061,804.86,803.89,1.675085]
[1754858466471,0.21649061,804.86,803.91,1.675085]
[1754858466675,0.21649061,804.86,803.99,1.675085]
[1754858467372,0.21649061,804.86,803.97,1.675085]
[1754858467976,0.21649061,804.86,803.92,1.675085]
[1754858468176,0.21649061,804.86,803.94,1.675085]
[1754858468377,0.21649061,804.86,803.91,1.675085]
[1754858468677,0.21649061,804.86,803.93,1.675085]
[1754858469376,0.21649061,804.86,803.91,1.675085]
[1754858470178,0.21649061,804.86,803.96,1.675085]
[1754858470474,0.21649061,804.86,803.94,1.675085]
[1754858471377,0.21649061,804.86,803.96,1.675085]
[1754858471576,0.21649061,804.86,803.95,1.675085]
[1754858472279,0.21649061,804.86,803.93,1.675085]
[1754858473378,0.21649061,804.86,803.92,1.675085]
[1754858473879,0.21649061,804.86,803.93,1.675085]
[1754858474081,0.8368115,805.41,803.9,1.675085]
[1754858474282,0.21643137,804.63,803.93,1.675085]
[1754858474482,0.21643137,804.63,803.92,1.675085]
[1754858474681,0.21643137,804.63,803.27,2.8023031]
[1754858474682,0.8368115,805.42,803.93,1.675085]
[1754858474881,0.21643137,804.46,803.93,1.675085]
[1754858475177,0.8368115,805.42,803.93,1.675085]
[1754858475381,0.2164307,804.34,803.92,1.675085]
[1754858475578,0.8368115,805.42,803.92,1.675085]
[1754858475782,0.21643137,804.34,803.92,1.675085]
[1754858476077,0.8368115,805.42,803.92,1.675085]
[1754858476282,0.79569135,805.41,803.91,1.675085]
[1754858476482,1.63250285,805.41,803.91,1.675085]
[1754858476681,0.79569135,805.4,803.91,1.675085]
[1754858476982,0.79569135,805.39,803.91,1.675085]
[1754858477186,0.79569135,805.38,803.91,1.675085]
[1754858477477,0.21643272,805.03,803.9,1.675085]
[1754858477782,0.21643272,805.03,803.94,1.675085]
[1754858478078,0.21643272,805.03,803.93,1.675085]
[1754858478279,0.21643272,805.03,803.94,1.675085]
[1754858479380,0.21643272,805.03,803.93,1.675085]
[1754858479579,0.21643272,805.03,803.94,1.675085]
[1754858480280,0.21643272,805.03,803.92,1.675085]
[1754858480484,0.21643272,805.03,803.98,1.675085]
[1754858480684,0.21643272,805.03,803.9,1.675085]
[1754858481383,0.21643272,805.03,803.92,1.675085]
[1754858482185,0.21643272,805.03,803.93,1.675085]
[1754858482485,0.21643272,805.03,803.98,1.675085]
[1754858482882,0.21643272,805.03,803.95,1.675085]
[1754858483186,0.21643272,805.03,803.97,1.675085]
[1754858484086,0.21643272,805.03,803.96,1.675085]
[1754858484286,0.21643272,805.03,803.95,1.675085]
[1754858484481,0.21643272,805.03,803.96,1.675085]
[1754858486290,0.21643272,805.03,803.95,1.675085]
[1754858486488,0.21643272,805.03,803.96,1.675085]
[1754858490189,0.21643272,805.03,803.97,1.675085]
[1754858490486,0.21643272,805.03,803.99,1.675085]
[1754858490685,0.21643272,805.03,804.06,1.675085]
[1754858491286,0.21643272,805.03,804.05,1.675085]
[1754858491489,0.21643272,805.03,804.06,1.675085]
[1754858492689,0.21643272,805.03,804.07,1.675085]
[1754858492986,0.21643272,805.03,804.12,1.675085]
[1754858494093,0.21643272,805.03,804.14,1.675085]
[1754858494289,0.21643272,805.03,804.12,1.675085]
[1754858494487,0.21643272,805.03,804.13,1.675085]
[1754858495491,0.21643272,805.03,804.14,1.675085]
[1754858496087,0.21643272,805.03,804.12,1.675085]
[1754858496288,0.21643272,805.03,804.11,1.675085]
[1754858496591,0.21643272,805.03,804.13,1.675085]
[1754858497391,0.21643272,805.03,804.15,1.675085]
[1754858498092,0.21643272,805.03,804.16,1.675085]
[1754858498292,0.21643272,805.03,804.18,1.675085]
[1754858499393,0.21643272,805.03,804.21,1.675085]
[1754858500492,0.21643272,805.03,804.24,1.675085]
[1754858500893,0.21643272,805.03,804.25,1.675085]
[1754858501194,0.21643272,805.03,804.15,1.675085]
[1754858501391,0.21643272,805.03,804.21,1.675085]
[1754858502194,0.21643272,805.03,804.2,1.675085]
[1754858502390,0.21643272,805.03,804.25,1.675085]
[1754858502589,0.21643272,805.03,804.27,1.675085]
[1754858503592,0.21643272,805.03,804.28,1.675085]